bitfinex/quotes_ETHUSD_20250923
["timestamp","ask_amount","ask_price","bid_price","bid_amount"]
[1758592143725,0.001,4182.9,4182.8,12.95074304]
[1758592143923,0.001,4182.9,4182.8,13.06994304]
[1758592144992,0.6907,4184.5,4184.3,2.389886]
[1758592145244,0.001,4185.1,4184.3,6.422886]
[1758592145938,0.6917,4184.4,4184.3,6.422886]
[1758592146137,0.001,4184.4,4184.3,6.422886]
[1758592146292,0.4423,4184.4,4184.3,6.422886]
[1758592146492,0.6917,4184.4,4184.3,6.422886]
[1758592146787,0.6917,4184.4,4184.3,13.422886]
[1758592147188,0.001,4184.4,4184.3,14.214886]
[1758592147813,0.2504,4184.4,4184.3,9.389886]
[1758592148125,0.6917,4184.4,4184.3,9.389886]
[1758592148326,0.6917,4184.4,4184.3,13.422886]
[1758592149324,0.6917,4184.4,4184.3,9.389886]
[1758592149489,0.6917,4184.4,4184.3,13.422886]
[1758592149927,0.4423,4184.4,4184.3,13.422886]
[1758592150315,0.001,4184.4,4184.3,13.422886]
[1758592150842,0.001,4184.4,4184.3,14.69755081]
[1758592151629,0.001,4184.4,4184.3,7.69755081]
[1758592151943,0.001,4184.4,4184.3,7.93205081]
[1758592152137,0.001,4184.4,4184.3,8.36255081]
[1758592153413,0.001,4184.4,4184.3,11.36255081]
[1758592155037,0.001,4184.4,4184.3,11.48175081]
[1758592156263,1e-08,4184.9,4184.8,3.18160045]
[1758592156417,1e-08,4184.9,4184.8,12.27960045]
[1758592156618,1e-08,4184.9,4184.8,12.39880045]
[1758592157063,0.68920001,4184.9,4184.8,6.53980045]
[1758592157560,0.68920001,4184.9,4184.8,2.50880045]
[1758592157718,0.68920001,4184.9,4184.8,6.53980045]
[1758592158548,0.68920001,4184.9,4184.8,13.53980045]
[1758592159253,0.68920001,4184.9,4184.8,9.50880045]
[1758592159419,0.68920001,4184.9,4184.8,13.53980045]
[1758592159853,0.68920001,4184.9,4184.8,9.50880045]
[1758592160041,0.68920001,4184.9,4184.8,13.53980045]
[1758592161529,0.68920001,4184.9,4184.8,13.54380045]
[1758592161731,0.68920001,4184.9,4184.8,6.54380045]
[1758592161942,0.69020001,4184.9,4184.8,6.54380045]
[1758592162732,0.69020001,4184.9,4184.8,2.51280045]
[1758592163036,0.69020001,4184.9,4184.8,4.1542]
[1758592163241,0.69020001,4184.9,4184.8,6.54380045]
[1758592163644,0.00100001,4184.9,4184.8,6.54380045]
[1758592163845,0.69020001,4184.9,4184.8,6.54380045]
[1758592167643,0.69020001,4184.9,4184.8,2.51280045]
[1758592167845,0.69020001,4184.9,4184.8,6.54280045]
[1758592168175,0.00100001,4184.9,4184.8,6.54280045]
[1758592169274,0.00100001,4184.9,4184.8,6.78230045]
[1758592170176,0.00100001,4184.9,4184.8,2.51280045]
[1758592170548,0.00100001,4184.9,4184.8,6.54280045]
[1758592171368,0.00100001,4184.9,4184.8,6.78230045]
[1758592172254,0.00100001,4184.9,4184.8,2.51280045]
[1758592172462,0.44830001,4184.9,4184.8,6.54280045]
[1758592172774,0.00100001,4184.9,4184.8,6.54280045]
[1758592173146,0.00100001,4184.9,4184.8,2.51280045]
[1758592173445,0.00100001,4184.9,4184.8,6.54280045]
[1758592175285,0.00100001,4184.9,4184.8,2.51280045]
[1758592175485,0.00100001,4184.9,4184.8,6.54280045]
[1758592175486,0.69020001,4184.9,4184.8,6.54280045]
[1758592177784,0.69020001,4184.9,4184.8,4.1532]
[1758592177951,1.20396193,4184.9,4184.8,0.004]
[1758592179672,5.23396193,4184.9,4184.8,0.004]
[1758592179876,5.4569404,4184.9,4184.8,0.004]
[1758592182578,15.65067493,4184.9,4184.8,0.004]
[1758592182768,18.89525234,4184.9,4184.8,0.004]
[1758592184998,18.04021828,4184.9,4184.8,0.004]
[1758592186895,18.83221828,4184.9,4184.8,0.004]
[1758592187102,20.11469715,4184.9,4184.8,0.004]
[1758592187294,20.11376238,4184.9,4184.8,0.004]
[1758592189399,18.83221828,4184.9,4184.8,0.004]
[1758592191035,18.83221828,4184.9,4184.3,0.004]
[1758592191036,0.792,4184.7,4184.3,0.004]
[1758592191209,12.78331673,4184.4,4184.3,0.004]
[1758592191405,17.68379165,4184.4,4184.3,0.004]
[1758592191917,18.37059165,4184.4,4184.3,0.004]
[1758592192728,17.38555905,4184.4,4184.3,0.004]
[1758592193609,18.02516703,4184.4,4184.3,0.004]
[1758592193813,18.02514212,4184.4,4184.3,0.004]
[1758592194205,17.38555905,4184.4,4184.3,0.004]
[1758592194502,18.02501728,4184.4,4184.3,0.004]
[1758592196321,25.08501728,4184.4,4184.3,0.004]
[1758592197437,24.39821728,4184.4,4184.3,0.004]
[1758592197738,18.02256927,4184.4,4184.3,0.004]
[1758592197942,18.15574667,4184.4,4184.3,0.004]
[1758592199255,18.7952049,4184.4,4184.3,0.004]
[1758592200655,18.94774667,4184.4,4184.3,0.004]
[1758592202757,21.01474667,4184.4,4184.3,0.004]
[1758592202990,21.01386056,4184.4,4184.3,0.004]
[1758592204462,20.38862565,4184.4,4184.3,0.004]
[1758592204760,20.17524974,4184.4,4184.3,0.004]
[1758592205076,20.17525767,4184.4,4184.3,0.243]
[1758592205429,19.53506056,4184.4,4184.3,0.243]
[1758592205622,19.53506056,4184.4,4184.3,0.004]
[1758592207194,21.07542565,4184.4,4184.3,0.004]
[1758592207402,20.22186056,4184.4,4184.3,0.004]
[1758592207605,21.01386056,4184.4,4184.3,0.004]
[1758592207753,22.29540466,4184.4,4184.3,0.004]
[1758592208397,21.01386056,4184.4,4184.3,0.004]
[1758592209097,20.50009864,4184.4,4184.3,0.004]
[1758592209297,21.01307432,4184.4,4184.3,0.004]
[1758592210253,21.01307432,4184.4,4183.9,0.004]
[1758592210254,2.39005736,4184.0,4183.9,0.004]
[1758592210504,16.69595059,4184.0,4183.9,0.004]
[1758592210887,16.93495059,4184.0,4183.9,0.004]
[1758592212488,18.21832592,4184.0,4183.9,0.004]
[1758592214273,11.92907067,4184.0,4183.9,0.004]
[1758592214597,18.21832592,4184.0,4183.9,0.004]
[1758592215682,18.67832592,4184.0,4183.9,0.004]
[1758592215887,17.63805059,4184.0,4183.9,0.004]
[1758592216578,17.39495059,4184.0,4183.9,0.004]
[1758592216763,17.39561592,4184.0,4183.9,0.004]
[1758592219097,16.93561592,4184.0,4183.9,0.004]
[1758592220194,17.38821592,4184.0,4183.9,0.004]
[1758592220387,17.63131592,4184.0,4182.3,0.004]
[1758592220587,17.63131592,4184.0,4182.0,0.004]
[1758592220588,8.68016977,4182.5,4182.0,0.004]
[1758592220772,2.39120038,4182.0,4181.9,0.004]
[1758592221098,3.0,4181.9,4181.3,0.2283]
[1758592221419,3.0,4181.9,4181.0,0.4535]
[1758592221420,2.39165789,4181.2,4181.0,0.4535]
[1758592221565,12.35604503,4181.2,4180.6,0.2283]
[1758592221767,13.21201841,4181.2,4180.6,0.2283]
[1758592222309,4.76492591,4181.2,4181.1,0.7018]
[1758592222465,4.029,4181.2,4181.1,0.7018]
[1758592222665,4.54057121,4181.2,4181.1,0.7018]
[1758592222871,0.63963433,4181.8,4181.1,0.7018]
[1758592223100,3.0,4181.6,4181.2,0.6818]
[1758592223300,6.28925525,4181.4,4181.3,0.2283]
[1758592223608,7.02288152,4181.4,4181.1,0.02]
[1758592223788,4.76262627,4181.3,4181.2,0.4535]
[1758592223999,4.76262627,4181.3,4181.1,0.02]
[1758592224170,0.51159078,4181.2,4181.1,0.02]
[1758592224711,0.51159078,4181.2,4181.1,0.7018]
[1758592225066,4.54059078,4181.2,4181.1,3.09351509]
[1758592225396,4.029,4181.2,4181.1,3.09351509]
[1758592226001,0.71888056,4181.6,4181.2,2.39165789]
[1758592226309,0.71888056,4181.6,4181.1,0.7018]
[1758592226310,2.067,4182.0,4181.5,2.3914863]
[1758592226508,4.76165111,4181.9,4181.5,2.39144438]
[1758592226695,0.51090946,4181.8,4181.6,0.6818]
[1758592226892,4.53990946,4181.7,4181.5,2.39144438]
[1758592227100,4.029,4181.7,4181.5,2.39144438]
[1758592227275,0.71875999,4182.0,4181.3,2.39155023]
[1758592227470,4.76162484,4181.9,4181.5,2.3914863]
[1758592227802,0.51089698,4181.8,4181.6,0.6818]
[1758592228003,4.53989698,4181.7,4181.1,0.02]
[1758592228195,0.51085661,4181.6,4181.3,2.39159307]
[1758592228503,4.029,4181.5,4181.3,2.39159307]
[1758592228702,0.7188151,4181.8,4181.4,0.2283]
[1758592228913,6.28925525,4181.6,4181.4,0.2283]
[1758592229113,4.53982615,4181.5,4181.1,2.86519988]
[1758592229284,4.029,4181.5,4181.2,2.8451526]
[1758592229492,4.029,4181.5,4181.3,0.4535]
[1758592229691,4.029,4181.5,4181.3,0.6818]
[1758592230013,4.029,4181.5,4181.4,0.6818]
[1758592230209,4.76146949,4181.5,4181.1,0.2483]
[1758592230407,6.28925525,4181.2,4181.1,0.02]
[1758592230610,14.050711,4181.2,4181.1,0.02]
[1758592231615,14.0506498,4181.2,4181.1,0.02]
[1758592232990,14.05018413,4181.2,4181.1,0.02]
[1758592233310,14.05018413,4181.2,4181.1,0.024]
[1758592233514,7.76092888,4181.2,4181.1,0.024]
[1758592234688,11.51844483,4181.2,4181.1,0.024]
[1758592234888,9.12678694,4181.2,4181.1,0.024]
[1758592235508,11.51844483,4181.2,4181.1,0.024]
[1758592235720,9.12678694,4181.2,4181.1,0.024]
[1758592237033,5.09778694,4181.2,4181.1,0.024]
[1758592237332,11.19478694,4181.2,4181.1,0.024]
[1758592237538,14.92005968,4181.2,4181.1,0.024]
[1758592237833,2.39188672,4180.8,4180.7,0.004]
[1758592238018,13.57494042,4180.8,4180.7,0.004]
[1758592238418,14.36651965,4180.8,4180.7,0.004]
[1758592238622,8.0772644,4180.8,4180.7,0.004]
[1758592239809,11.0772644,4180.8,4180.7,0.004]
[1758592240015,13.06727754,4180.8,4180.7,0.004]
[1758592240578,9.97969082,4180.8,4180.7,0.004]
[1758592241151,5.95069082,4180.8,4180.7,0.004]
[1758592241335,4.46493525,4180.8,4180.7,0.2323]
[1758592241644,9.92580811,4180.8,4180.7,0.2323]
[1758592241851,0.82780811,4180.8,4180.7,0.6858]
[1758592242039,0.82780811,4180.8,4180.7,3.07774393]
[1758592242338,4.63621111,4180.8,4180.7,3.07774393]
[1758592243045,4.63621111,4180.8,4180.7,0.6858]
[1758592243249,4.85753777,4180.8,4180.7,0.004]
[1758592243752,5.61380426,4180.8,4180.7,0.004]
[1758592243939,11.00567429,4180.8,4180.7,0.004]
[1758592244134,11.45827429,4180.8,4180.7,0.004]
[1758592244717,12.55087188,4180.8,4180.7,0.004]
[1758592244936,10.15898516,4180.8,4180.7,0.004]
[1758592245244,11.70137429,4180.8,4180.7,0.004]
[1758592246124,4.58378757,4180.8,4180.7,0.004]
[1758592246442,9.92552108,4180.8,4180.7,0.2519]
[1758592246629,9.92552108,4180.8,4180.7,0.6892]
[1758592246953,8.49540745,4180.8,4180.7,3.08114393]
[1758592247115,8.49540745,4180.8,4180.7,0.6892]
[1758592247316,8.49572172,4180.8,4180.7,0.2519]
[1758592247514,8.49572172,4180.8,4180.7,0.004]
[1758592247710,9.5920416,4180.8,4180.7,0.004]
[1758592247938,10.4425251,4180.8,4180.7,0.004]
[1758592248162,10.44280234,4180.8,4180.7,0.004]
[1758592248372,12.11723078,4180.8,4180.7,0.004]
[1758592248663,9.72534406,4180.8,4180.7,0.004]
[1758592248852,9.11841884,4180.8,4180.7,0.004]
[1758592249443,11.64342438,4180.8,4180.7,0.004]
[1758592249866,9.25153766,4180.8,4180.7,0.004]
[1758592250168,12.35022438,4180.8,4180.7,0.004]
[1758592250739,2.39211558,4180.4,4180.3,0.004]
[1758592250962,11.18556588,4180.4,4180.3,0.004]
[1758592251266,11.89236588,4180.4,4180.3,0.004]
[1758592252628,7.50946588,4180.4,4180.3,0.004]
[1758592252824,3.0,4180.3,4179.8,0.004]
[1758592253069,1.27820427,4180.1,4179.9,0.2479]
[1758592253225,3.0,4179.9,4179.8,0.004]
[1758592253431,0.73191909,4179.9,4179.8,0.004]
[1758592253728,4.76591909,4179.9,4179.8,2.39645896]
[1758592253934,4.76591909,4179.9,4179.8,3.56056186]
[1758592254186,4.76591909,4179.9,4179.8,0.2519]
[1758592254333,1.37101762,4179.9,4179.8,3.08165896]
[1758592254528,0.73191909,4179.9,4179.8,3.08165896]
[1758592254772,0.51033188,4179.9,4179.8,3.08165896]
[1758592256054,0.51033188,4179.9,4179.8,0.004]
[1758592256055,0.51137235,4179.9,4179.8,0.004]
[1758592256368,4.73151272,4179.9,4179.8,0.004]
[1758592256566,2.66351272,4179.9,4179.8,0.004]
[1758592256768,8.78351272,4179.9,4179.8,0.004]
[1758592256977,7.50530845,4179.9,4179.8,0.004]
[1758592258295,8.78351272,4179.9,4179.8,0.004]
[1758592258500,11.78351272,4179.9,4179.8,0.004]
[1758592258670,10.50530845,4179.9,4179.8,0.004]
[1758592259005,10.50534898,4179.9,4179.8,0.004]
[1758592260002,10.50534898,4179.9,4179.8,0.2519]
[1758592260003,0.8664902,4179.9,4179.8,0.2519]
[1758592260216,7.70512893,4179.9,4179.8,0.6892]
[1758592260355,6.8522878,4179.9,4179.8,0.6892]
[1758592260802,6.8522878,4179.9,4179.8,0.2519]
[1758592260954,0.7332878,4179.9,4179.8,3.08165896]
[1758592261154,5.63641691,4179.9,4179.8,3.08165896]
[1758592261351,4.7832878,4179.9,4179.8,0.6892]
[1758592261552,5.63641691,4179.9,4179.8,3.08165896]
[1758592261768,5.63641691,4179.9,4179.8,0.6892]
[1758592261964,5.63641691,4179.9,4179.8,3.08165896]
[1758592262169,4.7832878,4179.9,4179.8,3.08165896]
[1758592262382,5.63641691,4179.9,4179.8,3.08165896]
[1758592262880,4.7832878,4179.9,4179.8,3.08165896]
[1758592263076,0.7332878,4179.9,4179.8,3.62908152]
[1758592263283,1.37341821,4179.9,4179.8,3.62908152]
[1758592263594,0.7332878,4179.9,4179.8,0.6892]
[1758592263912,0.7332878,4179.9,4179.8,3.08165896]
[1758592264073,0.7332878,4179.9,4179.8,0.2519]
[1758592264264,1.37341821,4179.9,4179.8,2.64435896]
[1758592265393,0.7332878,4179.9,4179.8,2.64435896]
[1758592265898,0.7332878,4179.9,4179.8,0.2519]
[1758592266066,2.00097294,4179.9,4179.8,0.004]
[1758592266261,1.36084253,4179.9,4179.8,0.004]
[1758592266583,1.49435299,4179.9,4179.8,0.004]
[1758592266790,4.59355472,4179.9,4179.8,0.004]
[1758592266989,2.20115299,4179.9,4179.8,0.004]
[1758592267371,5.20115299,4179.9,4179.8,0.004]
[1758592267795,7.59355472,4179.9,4179.8,0.004]
[1758592267979,7.59358593,4179.9,4179.8,0.004]
[1758592269812,0.86682947,4179.9,4179.8,0.004]
[1758592269985,4.91582947,4179.9,4179.8,0.004]
[1758592270325,9.98482947,4179.9,4179.8,0.004]
[1758592270816,12.3772312,4179.9,4179.8,0.004]
[1758592270989,9.98482947,4179.9,4179.8,0.004]
[1758592271801,12.3772312,4179.9,4179.8,0.004]
[1758592272207,9.98482947,4179.9,4179.8,0.004]
[1758592274230,10.83924894,4179.9,4179.8,0.004]
[1758592275098,13.70555067,4179.9,4179.8,0.004]
[1758592275299,13.67935067,4179.9,4179.8,0.004]
[1758592275490,10.9967312,4179.9,4179.8,0.004]
[1758592275823,13.36746449,4179.9,4179.8,0.004]
[1758592276022,13.36741541,4179.9,4179.8,0.004]
[1758592278250,7.25241541,4179.9,4179.8,0.004]
[1758592278459,13.36841541,4179.9,4179.8,0.004]
[1758592279754,14.65023454,4179.9,4179.8,0.004]
[1758592283367,14.65023454,4179.9,4179.3,0.004]
[1758592283368,2.39268794,4179.4,4179.3,0.004]
[1758592283542,17.59433391,4179.4,4179.3,0.004]
[1758592283856,19.08443391,4179.4,4179.3,0.004]
[1758592284446,20.79129626,4179.4,4179.3,0.004]
[1758592284827,19.08443391,4179.4,4179.3,0.004]
[1758592285028,21.24173058,4179.4,4179.3,0.004]
[1758592285252,22.94730678,4179.4,4179.3,0.004]
[1758592285837,22.94730678,4179.4,4179.3,1e-08]
[1758592286038,3.18480245,4179.2,4179.1,0.02]
[1758592286266,12.8043993,4179.2,4179.1,0.02]
[1758592286431,15.2472369,4179.2,4179.1,0.02]
[1758592286631,3.18491696,4179.0,4178.9,0.004]
[1758592286832,20.45856293,4179.0,4178.9,0.004]
[1758592287160,21.15666293,4179.0,4178.9,0.004]
[1758592287329,21.38866293,4179.0,4178.9,0.004]
[1758592287530,23.83150053,4179.0,4178.9,0.004]
[1758592287759,23.83150053,4179.0,4178.9,1e-08]
[1758592287967,23.83110453,4179.0,4178.9,1e-08]
[1758592290670,17.71610453,4179.0,4178.9,1e-08]
[1758592290884,17.71610453,4179.0,4177.1,0.02]
[1758592290885,3.792,4178.9,4177.1,0.02]
[1758592291033,11.08386558,4178.2,4177.4,0.232]
[1758592291234,18.4026251,4178.2,4177.4,0.232]
[1758592291468,19.1007251,4178.2,4177.4,0.232]
[1758592292346,22.44417442,4178.2,4177.4,0.232]
[1758592293161,15.0417251,4178.2,4177.4,0.232]
[1758592293393,23.08794194,4178.2,4177.9,0.1192]
[1758592294165,17.54084194,4178.2,4177.9,0.1192]
[1758592294366,21.59884194,4178.2,4177.9,0.1192]
[1758592294562,14.30697636,4178.2,4177.9,0.1192]
[1758592295663,15.00507636,4178.2,4177.9,0.1192]
[1758592296175,16.27952568,4178.2,4177.9,0.1192]
[1758592296375,17.07152568,4178.2,4177.9,0.1192]
[1758592297179,15.79707636,4178.2,4177.9,0.1192]
[1758592297485,17.07134847,4178.2,4177.9,0.1192]
[1758592297996,16.82334847,4178.2,4177.9,0.1192]
[1758592298200,15.09838656,4178.2,4177.9,0.1192]
[1758592298764,16.37134406,4178.2,4177.9,0.1192]
[1758592299301,14.30338656,4178.2,4178.1,0.3712]
[1758592299896,0.86579459,4178.2,4178.1,0.252]
[1758592300094,6.866698,4178.2,4178.1,0.7147]
[1758592300422,12.26014636,4178.2,4178.1,0.02]
[1758592300715,12.26014636,4178.2,4178.1,0.252]
[1758592301216,4.37026544,4178.2,4178.1,0.7147]
[1758592301402,10.50426544,4178.2,4178.1,0.7147]
[1758592303719,4.37026544,4178.2,4178.1,0.7147]
[1758592304023,9.86677123,4178.2,4178.1,0.7147]
[1758592304320,10.50426544,4178.2,4178.1,0.7147]
[1758592304986,10.50426544,4178.2,4178.1,0.7187]
[1758592306021,10.50326544,4178.2,4178.1,0.7187]
[1758592306413,12.89664057,4178.2,4178.1,0.256]
[1758592306591,12.89664057,4178.2,4178.1,0.024]
[1758592306793,12.25914636,4178.2,4178.1,0.024]
[1758592307195,14.48548071,4178.2,4178.1,0.024]
[1758592307525,14.61854759,4178.2,4178.1,0.024]
[1758592307725,14.37744759,4178.2,4178.1,0.024]
[1758592308027,13.94244759,4178.2,4178.1,0.024]
[1758592309905,13.94244759,4178.2,4178.1,0.1432]
[1758592310311,9.99583811,4178.2,4178.1,0.8329]
[1758592310525,13.24186167,4178.2,4178.1,0.8329]
[1758592310935,13.24186167,4178.2,4178.1,0.3708]
[1758592311237,12.38921324,4178.2,4178.1,0.1432]
[1758592312938,9.99615562,4178.2,4178.1,0.1432]
[1758592313142,11.27111312,4178.2,4178.1,0.3708]
[1758592313320,5.14111312,4178.2,4178.1,0.3708]
[1758592313520,11.26811312,4178.2,4178.1,0.8329]
[1758592313836,5.14111312,4178.2,4178.1,0.8329]
[1758592314226,9.19711312,4178.2,4178.1,0.8329]
[1758592314431,11.26711312,4178.2,4178.1,0.8329]
[1758592315009,3.86615562,4178.2,4178.1,0.3708]
[1758592315211,4.78877123,4178.2,4178.1,3.10713242]
[1758592315526,4.78877123,4178.2,4178.1,1.26376438]
[1758592315714,4.78877123,4178.2,4178.1,3.10713242]
[1758592318239,4.56737235,4178.2,4178.1,3.10713242]
[1758592318829,4.78981575,4178.2,4178.1,3.10713242]
[1758592319160,4.56737235,4178.2,4178.1,0.7137]
[1758592319969,4.78977901,4178.2,4178.1,0.024]
[1758592320134,5.43083673,4178.2,4178.1,0.024]
[1758592320729,10.9926756,4178.2,4178.1,0.024]
[1758592320944,11.84741923,4178.2,4178.1,0.024]
[1758592321326,13.40437714,4178.2,4178.1,0.024]
[1758592322563,11.01100201,4178.2,4178.1,0.024]
[1758592322748,4.72109607,4178.2,4178.1,2.64503242]
[1758592322952,10.49825836,4178.2,4178.1,0.7137]
[1758592323365,10.49825836,4178.2,4178.1,0.2516]
[1758592323753,0.73377901,4178.2,4178.1,0.2516]
[1758592324066,4.56637235,4178.2,4178.1,3.10713242]
[1758592324249,4.56637235,4178.2,4178.1,3.65719917]
[1758592324588,4.56637235,4178.2,4178.1,1.26376675]
[1758592325080,4.56637235,4178.2,4178.1,3.22633242]
[1758592325278,4.56537235,4178.2,4178.1,3.22633242]
[1758592325785,4.56537235,4178.2,4178.1,0.8329]
[1758592326090,4.78777374,4178.2,4178.1,0.1432]
[1758592327286,0.73377374,4178.2,4178.1,0.1432]
[1758592327585,6.85677374,4178.2,4178.1,0.3708]
[1758592328213,6.85677374,4178.2,4178.1,0.1432]
[1758592329294,7.53287374,4178.2,4178.1,0.1432]
[1758592330283,16.62938035,4178.2,4178.1,0.1432]
[1758592330482,18.13608458,4178.2,4178.1,0.1432]
[1758592330684,21.13608458,4178.2,4178.1,0.1432]
[1758592330901,22.41104208,4178.2,4178.1,0.1432]
[1758592331286,21.13608458,4178.2,4178.1,0.1432]
[1758592331877,14.83233245,4178.2,4178.1,0.1432]
[1758592332209,22.41789641,4178.2,4178.1,0.1432]
[1758592332618,22.41789641,4178.2,4177.3,0.2276]
[1758592332619,2.39394809,4177.2,4177.1,0.02]
[1758592332779,15.69902635,4177.2,4177.1,0.02]
[1758592333105,19.37512635,4177.2,4177.1,0.1392]
[1758592333898,19.49308159,4177.2,4177.1,0.1392]
[1758592334092,21.93591919,4177.2,4177.1,0.1392]
[1758592334688,16.42416706,4177.2,4177.1,0.1392]
[1758592334913,18.44724855,4177.2,4177.1,0.1392]
[1758592335404,16.73882132,4177.2,4177.1,0.1392]
[1758592335578,18.44724855,4177.2,4177.1,1e-08]
[1758592336230,25.78377776,4176.7,4176.6,0.1192]
[1758592336509,32.35534962,4176.7,4176.6,0.1192]
[1758592336708,33.01674962,4176.7,4176.6,0.1192]
[1758592338529,33.33140388,4176.7,4176.6,0.1192]
[1758592338708,6.186292,4176.6,4176.1,0.02]
[1758592339030,7.0366539,4176.2,4176.1,0.02]
[1758592339329,14.74974606,4176.2,4176.1,0.02]
[1758592339699,15.41114606,4176.2,4176.1,0.02]
[1758592340299,16.68400998,4176.2,4176.1,0.02]
[1758592340501,15.41114606,4176.2,4176.1,0.02]
[1758592340826,15.53034606,4176.2,4176.1,0.02]
[1758592341135,16.80302122,4176.2,4176.1,0.02]
[1758592341497,9.27814606,4176.2,4176.1,0.02]
[1758592341698,21.88414606,4176.2,4176.1,0.02]
[1758592342329,22.73176372,4176.2,4176.1,0.02]
[1758592342508,21.88414606,4176.2,4176.1,0.02]
[1758592343099,9.27814606,4176.2,4176.1,0.02]
[1758592343299,22.73141384,4176.2,4176.1,0.02]
[1758592343701,3.18663601,4176.0,4175.1,0.02]
[1758592343929,3.18663601,4176.0,4174.1,0.02]
[1758592343930,3.792,4175.1,4174.1,0.02]
[1758592344131,3.0,4174.9,4174.3,0.234]
[1758592344433,2.39544291,4174.6,4174.3,0.234]
[1758592344630,3.0,4174.4,4174.3,0.234]
[1758592344833,3.51120467,4174.4,4174.1,0.02]
[1758592345037,0.51120467,4174.6,4174.3,0.1192]
[1758592345334,3.0,4174.4,4174.3,0.1192]
[1758592345512,7.57620467,4174.4,4174.2,0.4651]
[1758592345714,7.065,4174.4,4174.3,0.1192]
[1758592345926,9.9683841,4174.4,4174.3,0.1192]
[1758592346247,9.9683841,4174.4,4174.1,0.02]
[1758592346248,1.95131512,4174.4,4174.1,0.02]
[1758592346420,9.65383025,4174.3,4174.2,0.234]
[1758592346621,12.04944149,4174.3,4174.2,0.234]
[1758592346940,5.39566863,4174.2,4174.1,0.02]
[1758592347145,5.90349888,4174.2,4174.1,0.02]
[1758592347345,6.56489888,4174.2,4174.1,0.02]
[1758592347532,7.15641481,4174.2,4174.1,0.02]
[1758592347933,6.92551481,4174.2,4174.1,0.02]
[1758592348652,7.15641481,4174.2,4174.1,0.02]
[1758592348817,8.01211338,4174.2,4174.1,0.02]
[1758592349215,9.01590111,4174.2,4174.1,0.02]
[1758592349440,8.16852738,4174.2,4174.1,0.02]
[1758592350025,18.74461145,4174.2,4174.1,0.02]
[1758592350226,19.58951277,4174.2,4174.1,0.02]
[1758592350450,18.74461145,4174.2,4174.1,0.02]
[1758592350962,2.79894282,4174.2,4174.1,0.7191]
[1758592351119,0.50783025,4174.2,4174.1,0.7191]
[1758592351468,4.58883025,4174.2,4174.1,0.7191]
[1758592351766,6.65983025,4174.2,4174.1,3.11482602]
[1758592352072,4.081,4174.2,4174.1,3.42630862]
[1758592352429,4.58791528,4174.2,4174.1,3.42630862]
[1758592352767,4.58791528,4174.2,4174.1,0.7191]
[1758592353871,4.58691528,4174.2,4174.1,0.7191]
[1758592354059,6.65791528,4174.2,4174.1,0.7191]
[1758592355231,0.50691528,4174.2,4174.1,0.7191]
[1758592355474,4.58891528,4174.2,4174.1,0.7191]
[1758592355636,7.58891528,4174.2,4174.1,0.7191]
[1758592355971,7.58891528,4174.2,4174.1,0.254]
[1758592356347,8.44282613,4174.2,4174.1,0.8383]
[1758592356543,8.44382613,4174.2,4174.1,0.8383]
[1758592357179,10.20590635,4174.2,4174.1,0.3732]
[1758592357469,10.20590635,4174.2,4174.1,0.1392]
[1758592357674,13.49864551,4174.2,4174.1,0.1392]
[1758592357850,2.39597643,4173.7,4173.4,0.29199156]
[1758592358041,4.81023772,4173.6,4173.4,0.29199156]
[1758592358239,2.79823772,4173.5,4173.4,0.29199156]
[1758592358546,8.02025859,4173.5,4173.4,0.29199156]
[1758592358749,8.02025859,4173.5,4173.4,0.41119156]
[1758592358941,8.02025859,4173.5,4173.4,0.64519156]
[1758592359138,7.17451268,4173.5,4173.4,0.64519156]
[1758592361666,7.17451268,4173.5,4173.4,1.11029156]
[1758592362261,5.10151268,4173.5,4173.4,0.64519156]
[1758592362468,5.10151268,4173.5,4173.4,0.1192]
[1758592363349,6.93688571,4173.5,4173.4,0.1192]
[1758592363576,5.23437696,4173.5,4173.4,0.1192]
[1758592363849,5.10151268,4173.5,4173.4,0.1192]
[1758592364261,6.93695481,4173.5,4173.4,0.1192]
[1758592365356,7.6305165,4173.5,4173.4,0.1192]
[1758592365560,12.51835863,4173.5,4173.4,0.1192]
[1758592366356,10.12228819,4173.5,4173.4,0.1192]
[1758592366560,4.15344606,4173.5,4173.4,0.1192]
[1758592366770,8.23044606,4173.5,4173.4,0.1192]
[1758592366949,10.30244606,4173.5,4173.4,0.1192]
[1758592367277,10.30244606,4173.5,4173.4,0.3616]
[1758592367646,8.23044606,4173.5,4173.4,0.1192]
[1758592367949,4.15344606,4173.5,4173.4,0.1192]
[1758592368258,7.9374545,4173.5,4173.4,0.7893]
[1758592368461,10.0094545,4173.5,4173.4,0.7893]
[1758592368666,10.0094545,4173.5,4173.4,0.1192]
[1758592368867,11.40511533,4173.5,4173.4,0.1192]
[1758592369183,5.25863331,4173.5,4173.4,0.1192]
[1758592369388,11.40863331,4173.5,4173.4,0.1192]
[1758592369603,13.80470375,4173.5,4173.4,0.1192]
[1758592370967,13.92260782,4173.5,4173.4,0.1192]
[1758592371172,4.93363738,4173.5,4173.4,0.1192]
[1758592371376,6.61204699,4173.5,4173.4,0.1192]
[1758592371572,10.13287655,4173.5,4173.4,0.1192]
[1758592371867,12.52894699,4173.5,4173.4,0.1192]
[1758592372272,12.76404699,4173.5,4173.4,0.1192]
[1758592372569,12.52794699,4173.5,4173.4,0.1192]
[1758592372883,10.01397248,4173.5,4173.4,0.1192]
[1758592373285,12.41004292,4173.5,4173.4,0.1192]
[1758592373485,14.40707524,4173.5,4173.4,0.1192]
[1758592373686,14.84997524,4173.5,4173.4,0.1192]
[1758592373989,14.9698536,4173.5,4173.4,0.1192]
[1758592374393,14.9698536,4173.5,4172.1,0.02]
[1758592374394,2.39662681,4172.6,4172.1,0.02]
[1758592374563,1.70479154,4172.3,4172.1,0.02]
[1758592374763,7.01397248,4172.2,4172.1,0.02]
[1758592375184,7.01397248,4172.2,4172.1,0.4477]